lending/lending_fUSD_20240206
["ID","MTS","AMOUNT","RATE_DAILY","PERIOD"]
[313364778,1707234656381,-500.0,0.00049726,60]
[313364779,1707234656391,-500.0,0.00049726,60]
[313364780,1707234656401,-187.75,0.00049726,60]
[313364781,1707234656411,-564.69247967,0.00049726,60]
[313364782,1707234656420,-258.76347356,0.00049726,60]
[313364783,1707234656430,-500.0,0.00049726,60]
[313364784,1707234656439,-500.0,0.00049726,60]
[313364785,1707234656449,-500.0,0.00049726,60]
[313364786,1707234656458,-556.06801303,0.00049726,60]
[313364787,1707234656468,-500.0,0.00049726,2]
[313364788,1707234656477,-578.09787382,0.00049726,60]
[313364789,1707234656486,-500.0,0.00049726,60]
[313364790,1707234656496,-500.0,0.00049726,60]
[313364791,1707234656505,-500.0,0.00049726,60]
[313364792,1707234656514,-500.0,0.00049726,60]
[313364793,1707234656524,-500.0,0.00049726,60]
[313364794,1707234656533,-536.79152396,0.00049726,60]
[313364795,1707234656543,-500.0,0.00049726,60]
[313364796,1707234656552,-500.0,0.00049726,60]
[313364797,1707234656561,-397.91340931,0.00049726,60]
[313364798,1707234656571,-500.0,0.00049726,60]
[313364799,1707234656580,-747.18,0.00049726,7]
[313364800,1707234656589,-480.77688833,0.00049726,60]
[313364801,1707234656599,-500.0,0.00049726,60]
[313364802,1707234656609,-500.0,0.00049726,60]
[313364803,1707234656618,-206.71148824,0.00049726,60]
[313364804,1707234656628,-500.0,0.00049726,60]
[313364805,1707234656637,-500.0,0.00049726,60]
[313364806,1707234656647,-510.96895248,0.00049726,60]
[313364807,1707234656656,-500.0,0.00049726,60]
[313364808,1707234656666,-500.0,0.00049726,60]
[313364809,1707234656676,-500.0,0.00049726,60]
[313364810,1707234656685,-248.14931086,0.00049726,60]
[313364811,1707234656695,-500.0,0.00049726,60]
[313364812,1707234656704,-500.0,0.00049726,60]
[313364813,1707234656713,-500.0,0.00049726,60]
[313364814,1707234656722,-500.0,0.00049726,60]
[313364815,1707234656732,-500.0,0.00049726,60]
[313364816,1707234656741,-500.0,0.00049726,60]
[313364817,1707234656750,-606.7153995,0.00049726,60]
[313364818,1707234656760,-500.0,0.00049726,60]
[313364819,1707234656769,-500.0,0.00049726,60]
[313364820,1707234656778,-500.0,0.00049726,60]
[313364821,1707234656787,-500.0,0.00049726,60]
[313364822,1707234656798,-500.0,0.00049726,60]
[313364823,1707234656807,-500.0,0.00049726,60]
[313364824,1707234656817,-500.0,0.00049726,60]
[313364825,1707234656827,-500.0,0.00049726,60]
[313364826,1707234656837,-500.0,0.00049726,60]
[313364827,1707234656846,-500.0,0.00049726,60]
[313364828,1707234656855,-500.0,0.00049726,60]
[313364829,1707234656864,-500.0,0.00049726,60]
[313364830,1707234656873,-500.0,0.00049726,60]
[313364831,1707234656882,-500.0,0.00049726,60]
[313364832,1707234656891,-500.0,0.00049726,60]
[313364833,1707234656902,-3256.36,0.00049726,5]
[313364834,1707234656911,-538.61903791,0.00049726,60]
[313364835,1707234656920,-500.0,0.00049726,60]
[313364836,1707234656929,-155.66637677,0.00049726,60]
[313364837,1707234656938,-500.0,0.00049726,60]
[313364838,1707234656947,-500.0,0.00049726,60]
[313364839,1707234656957,-500.0,0.00049726,60]
[313364840,1707234656968,-500.0,0.00049726,60]
[313364841,1707234656979,-1064.3,0.00049726,60]
[313364842,1707234656988,-1053.25,0.00049726,60]
[313364843,1707234656999,-500.0,0.00049726,60]
[313364844,1707234657008,-500.0,0.00049726,60]
[313364845,1707234657018,-500.0,0.00049726,60]
[313364846,1707234657029,-500.0,0.00049726,60]
[313364847,1707234657042,-500.0,0.00049726,60]
[313364848,1707234657052,-500.0,0.00049726,60]
[313364849,1707234657061,-702.1,0.00049726,60]
[313364850,1707234657071,-500.0,0.00049726,60]
[313364851,1707234657081,-500.0,0.00049726,60]
[313364852,1707234657090,-418.27107256,0.00049726,60]
[313364853,1707234657100,-500.0,0.00049726,60]
[313364854,1707234657110,-500.0,0.00049726,60]
[313364855,1707234657119,-183.23046551,0.00049726,60]
[313364856,1707234657130,-381.71925344,0.00049726,60]
[313364857,1707234657140,-204.34055927,0.00049726,60]
[313364858,1707234657149,-500.0,0.00049726,60]
[313364859,1707234657159,-500.0,0.00049726,60]
[313364860,1707234657168,-500.0,0.00049726,60]
[313364861,1707234657177,-500.0,0.00049726,60]
[313364862,1707234657186,-500.0,0.00049726,60]
[313364863,1707234657196,-387.51587826,0.00049726,60]
[313364864,1707234657205,-500.0,0.00049726,60]
[313364865,1707234657313,-500.0,0.00049726,60]
[313364866,1707234657323,-500.0,0.00049726,60]
[313364867,1707234657332,-428.59007666,0.00049726,60]
[313364868,1707234657341,-500.0,0.00049726,60]
[313364869,1707234657351,-500.0,0.00049726,60]
[313364870,1707234657360,-500.0,0.00049726,60]
[313364871,1707234657370,-500.0,0.00049726,60]
[313364872,1707234657379,-500.0,0.00049726,60]
[313364873,1707234657388,-500.0,0.00049726,60]
[313364874,1707234657399,-372.0531161,0.00049726,60]
[313364875,1707234657408,-500.0,0.00049726,60]
[313364876,1707234657418,-500.0,0.00049726,60]
[313364877,1707234657427,-500.0,0.00049726,60]
[313364878,1707234657436,-500.0,0.00049726,60]
[313364879,1707234657445,-500.0,0.00049726,60]
[313364880,1707234657455,-500.0,0.00049726,60]
[313364881,1707234657464,-500.0,0.00049726,60]
[313364882,1707234657473,-500.0,0.00049726,60]
[313364883,1707234657483,-500.0,0.00049726,60]
[313364884,1707234657492,-500.0,0.00049726,60]
[313364885,1707234657501,-500.0,0.00049726,60]
[313364886,1707234657510,-500.0,0.00049726,60]
[313364887,1707234657520,-500.0,0.00049726,60]
[313364888,1707234657529,-500.0,0.00049726,60]
[313364889,1707234657538,-722.0,0.00049726,60]
[313364890,1707234657547,-500.0,0.00049726,60]
[313364891,1707234657556,-525.53802965,0.00049726,60]
[313364892,1707234657565,-500.0,0.00049726,60]
[313364893,1707234657575,-500.0,0.00049726,60]
[313364894,1707234657584,-500.0,0.00049726,60]
[313364895,1707234657594,-500.0,0.00049726,60]
[313364896,1707234657604,-500.0,0.00049726,60]
[313364897,1707234657613,-500.0,0.00049726,60]
[313364898,1707234657622,-500.0,0.00049726,60]
[313364899,1707234657632,-500.0,0.00049726,60]
[313364900,1707234657641,-1757.63,0.00049726,60]
[313364901,1707234657652,-395.22509646,0.00049726,60]
[313364902,1707234657661,-500.0,0.00049726,60]
[313364903,1707234657670,-500.0,0.00049726,60]
[313364904,1707234657680,-500.0,0.00049726,60]
[313364905,1707234657689,-592.20171517,0.00049726,60]
[313364906,1707234657698,-500.0,0.00049726,60]
[313364907,1707234657707,-202.11,0.00049726,60]
[313364908,1707234657716,-500.0,0.00049726,60]
[313364909,1707234657726,-500.0,0.00049726,60]
[313364910,1707234657735,-506.14559981,0.00049726,60]
[313364911,1707234657745,-500.0,0.00049726,60]
[313364912,1707234657754,-500.0,0.00049726,60]
[313364913,1707234657763,-500.0,0.00049726,60]
[313364914,1707234657774,-500.0,0.00049726,60]
[313364915,1707234657783,-500.0,0.00049726,60]
[313364916,1707234657792,-500.0,0.00049726,60]
[313364917,1707234657801,-500.0,0.00049726,60]
[313364918,1707234657810,-500.0,0.00049726,60]
[313364919,1707234657819,-218.77271421,0.00049726,60]
[313364920,1707234657828,-500.0,0.00049726,60]
[313364921,1707234657837,-500.0,0.00049726,60]
[313364922,1707234657846,-500.0,0.00049726,60]
[313364923,1707234657855,-500.0,0.00049726,60]
[313364924,1707234657865,-583.11,0.00049726,60]
[313364925,1707234657874,-500.0,0.00049726,60]
[313364926,1707234657884,-500.0,0.00049726,60]
[313364927,1707234657893,-601.82366693,0.00049726,60]
[313364928,1707234657904,-500.0,0.00049726,60]
[313364929,1707234657913,-490.95479124,0.00049726,60]
[313364930,1707234657923,-500.0,0.00049726,60]
[313364931,1707234657932,-500.0,0.00049726,60]
[313364932,1707234657941,-500.0,0.00049726,60]
[313364933,1707234657950,-1000.0,0.00049726,7]
[313364934,1707234657959,-353.12219893,0.00049726,60]
[313364935,1707234657969,-500.0,0.00049726,60]
[313364936,1707234657978,-668.27,0.00049726,60]
[313364937,1707234657987,-500.0,0.00049726,60]
[313364938,1707234657996,-500.0,0.00049726,60]
[313364939,1707234658005,-500.0,0.00049726,60]
[313364940,1707234658015,-500.0,0.00049726,60]
[313364941,1707234658023,-639.40790115,0.00049726,60]
[313364942,1707234658033,-500.0,0.00049726,60]
[313364943,1707234658042,-500.0,0.00049726,60]
[313364944,1707234658054,-500.0,0.00049726,60]
[313364945,1707234658063,-500.0,0.00049726,60]
[313364946,1707234658073,-500.0,0.00049726,60]
[313364947,1707234658082,-500.0,0.00049726,60]
[313364948,1707234658092,-1000.0,0.00049726,7]
[313364949,1707234658102,-434.79586766,0.00049726,60]
[313364950,1707234658111,-500.0,0.00049726,60]
[313364951,1707234658121,-500.0,0.00049726,60]
[313364952,1707234658131,-500.0,0.00049726,60]
[313364953,1707234658141,-2198.01,0.00049726,60]
[313364954,1707234658150,-500.0,0.00049726,60]
[313364955,1707234658160,-500.0,0.00049726,60]
[313364956,1707234658169,-500.0,0.00049726,60]
[313364957,1707234658178,-382.172453,0.00049726,60]
[313364958,1707234658187,-500.0,0.00049726,60]
[313364959,1707234658196,-578.65,0.00049726,60]
[313364960,1707234658205,-500.0,0.00049726,60]
[313364961,1707234658215,-500.0,0.00049726,60]
[313364962,1707234658224,-500.0,0.00049726,60]
[313364963,1707234658233,-500.0,0.00049726,60]
[313364964,1707234658243,-1427.07,0.00049726,5]
[313364965,1707234658252,-314.37745358,0.00049726,60]
[313364966,1707234658261,-500.0,0.00049726,60]
[313364967,1707234658270,-500.0,0.00049726,60]
[313364968,1707234658279,-500.0,0.00049726,60]
[313364969,1707234658288,-500.0,0.00049726,60]
[313364970,1707234658298,-479.90888037,0.00049726,60]
[313364971,1707234658307,-500.0,0.00049726,60]
[313364972,1707234658317,-500.0,0.00049726,60]
[313364973,1707234658326,-457.07616232,0.00049726,60]
[313364974,1707234658335,-604.66864578,0.00049726,60]
[313364975,1707234658344,-443.00535551,0.00049726,60]
[313364976,1707234658354,-500.0,0.00049726,60]
[313364977,1707234658363,-262.31065638,0.00049726,3]
[313364978,1707234658372,-500.0,0.00049726,60]
[313364979,1707234658382,-500.0,0.00049726,60]
[313364980,1707234658391,-500.0,0.00049726,60]
[313364981,1707234658400,-967.11,0.00049726,60]
[313364982,1707234658410,-500.0,0.00049726,60]
[313364983,1707234658420,-500.0,0.00049726,60]
[313364984,1707234658429,-711.53,0.00049726,60]
[313364985,1707234658438,-500.0,0.00049726,2]
[313364986,1707234658447,-500.0,0.00049726,60]
[313364987,1707234658457,-512.33439105,0.00049726,60]
[313364988,1707234658466,-609.07949227,0.00049726,60]
[313364989,1707234658476,-1562.7552,0.0004975,5]
[313364990,1707234658485,-2000.0,0.0004975,5]
[313364991,1707234658495,-1912.68521456,0.00049757,14]
[313364992,1707234658504,-213.02476705,0.00049762,2]
[313364993,1707234658513,-241.72345676,0.0004979,2]
[313364994,1707234658523,-5250.0,0.000498,31]
[313364995,1707234658532,-160.72453,0.000498,40]
[313364996,1707234658542,-300.0,0.000498,18]
[313364997,1707234658551,-790.92284849,0.000498,46]
[313364998,1707234658561,-11533.33868261,0.00049827,26]
[313364999,1707234658570,-627.19907435,0.00049831,2]
[313365000,1707234658580,-659.20290539,0.00049831,2]
[313365001,1707234658590,-864.51318696,0.00049831,2]
[313365002,1707234658599,-188.0028737,0.00049866,2]
[313365003,1707234658609,-188.0028737,0.00049866,2]
[313365004,1707234658619,-241.72345676,0.0004989,2]
[313365005,1707234658629,-162.33343041,0.0004989,2]
[313365006,1707234658640,-1207.4376444,0.00049898,4]
[313365007,1707234658651,-255.72957583,0.00049898,4]
[313365008,1707234658660,-263.19645831,0.00049898,4]
[313365009,1707234658670,-18966.55643487,0.00049898,4]
[313365010,1707234658679,-993.42611861,0.00049898,30]
[313365011,1707234658688,-150.0,0.00049898,9]
[313365012,1707234658698,-150.0,0.00049898,9]
[313365013,1707234658707,-68793.88375167,0.00049899,31]
[313365014,1707234658873,-82562.69472212,0.00049899,31]
[313365015,1707234658962,-336.67320792,0.00049315,2]
[313365016,1707234658974,-163.32679208,0.00049315,2]
[313365017,1707234658983,-392.11174781,0.00049726,60]
[313365018,1707234659009,-171.98,0.0004854,2]
[313365019,1707234659018,-155.98335683,0.00049726,60]
[313365020,1707234659028,-61394.96740237,0.00049899,31]
[313365021,1707234659038,-287665.64060324,0.00049899,90]
[313365022,1707234659049,-279.59839167,0.00049899,4]
[313365023,1707234659060,-348.8905171,0.00049899,90]
[313365024,1707234659069,-150.0,0.00049899,9]
[313365025,1707234659079,-150.0,0.00049899,9]
[313365026,1707234659090,-150.0,0.00049899,9]
[313365027,1707234659099,-150.0,0.00049899,9]
[313365028,1707234659107,-150.0,0.00049899,9]
[313365029,1707234659117,-150.0,0.00049899,9]
[313365030,1707234659127,-150.0,0.00049899,9]
[313365031,1707234659136,-150.0,0.00049899,9]
[313365032,1707234659145,-150.0,0.00049899,9]
[313365033,1707234659156,-150.0,0.00049899,9]
[313365034,1707234659165,-819042.90553476,0.000499,8]
[313365035,1707234659186,-8085.02745635,0.000499,8]
[313365036,1707234659225,-414.42100396,0.00049314,4]
[313365037,1707234659296,-898.29960232,0.00049314,4]
[313365038,1707234659307,-593.68445338,0.00049314,4]
[313365039,1707234659316,-112.2377886,0.000499,8]
[313365040,1707234659330,-603.18040177,0.000499,8]
[313365041,1707234659341,-45587.07875496,0.000499,8]
[313365042,1707234659353,-2135.46044482,0.000499,8]
[313365059,1707234852070,244.38823347,0.00020699,2]
[313365060,1707234852226,1755.61176653,0.00022079,2]
[313365061,1707234852249,200.0,0.00022079,2]
[313365062,1707234852273,200.0,0.00022079,2]
[313365063,1707234852295,1043.39876525,0.00022079,2]
[313365064,1707234920538,499.46515759,0.00022079,4]
[313365066,1707235181517,403.19810569,0.00021417,2]
[313365067,1707235183465,53.93797147,0.00022079,2]
[313365068,1707235183487,207.71810664,0.00022079,2]
[313365069,1707235193485,404.41481397,0.00022079,2]
[313365071,1707235197517,387.86707939,0.00021417,2]
[313365072,1707235197542,15.3310263,0.00021417,2]
[313365073,1707235201632,155.80835369,0.00022079,2]
[313365074,1707235201738,1108.62585777,0.00022079,2]
[313365075,1707235207847,2329.67917957,0.00022079,2]
[313365076,1707235208011,808.63102708,0.00022079,2]
[313365077,1707235209671,1025.76280394,0.00022079,2]
[313365078,1707235211863,9693.06077553,0.00022079,2]
[313365079,1707235214341,6099.83638977,0.00022079,2]
[313365080,1707235215473,260.81174276,0.00022079,2]
[313365081,1707235215515,403.19810569,0.00021417,2]
[313365082,1707235219035,155.0,0.00022,2]
[313365083,1707235220351,235.47214903,0.00022079,2]
[313365084,1707235222027,20434.55252657,0.00021969,2]
[313365085,1707235222803,5204.41118884,0.00022079,2]
[313365086,1707235223480,284.99180822,0.00022079,2]
[313365087,1707235224252,2329.67917957,0.00022079,2]
[313365088,1707235226017,814.32002419,0.00022079,2]
[313365089,1707235228001,362.084026,0.00022079,2]
[313365090,1707235231459,260.81174276,0.00022079,2]
[313365091,1707235235042,185.86400761,0.00022,2]
[313365092,1707235238497,6099.83638977,0.00022079,2]
[313365093,1707235239506,403.19810569,0.00021417,2]
[313365094,1707235239550,156.21324294,0.00022079,2]
[313365095,1707235239830,498.118635,0.00022079,2]
[313365096,1707235240792,5204.41118884,0.00022079,2]
[313365097,1707235241476,284.99180822,0.00022079,2]
[313365098,1707235242403,235.47214903,0.00022079,2]
[313365099,1707235245629,1024.5188225,0.00022079,2]
[313365100,1707235246002,362.084026,0.00022079,2]
[313365101,1707235249464,260.81174276,0.00022079,2]
[313365103,1707235256797,5204.41118884,0.00022079,2]
[313365104,1707235258451,219.84765612,0.00022079,2]
[313365105,1707235259839,2329.67917957,0.00022079,2]
[313365106,1707235264308,235.74554302,0.00022079,2]
[313365107,1707235265601,155.0,0.00022079,2]
[313365108,1707235266004,362.084026,0.00022079,2]
[313365109,1707235267463,260.81174276,0.00022079,2]
[313365110,1707235271724,1123.67870691,0.00022079,2]
[313365111,1707235273532,403.19810569,0.00021417,2]
[313365112,1707235276821,4934.87413481,0.00022079,2]
[313365113,1707235284320,235.19875504,0.00022079,2]
[313365114,1707235286607,155.0,0.0002,2]
[313365115,1707235287481,284.99180822,0.00022079,2]
[313365116,1707235287993,331.20587174,0.00022079,2]
[313365118,1707235289476,260.81174276,0.00022079,2]
[313365119,1707235289519,403.19810569,0.00021417,2]
[313365120,1707235289601,155.0,0.00022079,2]
[313365121,1707235291710,1123.67870691,0.00022079,2]
[313365122,1707235291838,2329.67917957,0.00022079,2]
[313365123,1707235300324,235.47214903,0.00022079,2]
[313365124,1707235302603,155.0,0.0002,2]
[313365125,1707235307485,417.46835655,0.00022079,2]
[313365126,1707235311489,2186.39244281,0.00021858,2]
[313365127,1707235311534,403.19810569,0.00021417,2]
[313365128,1707235313714,1122.28696773,0.0002,2]
[313365129,1707235315594,155.0,0.0002,2]
[313365130,1707235318593,155.0,0.0002,2]
[313365131,1707235321836,2330.61083222,0.0002,2]
[313365133,1707235322329,235.65715361,0.0002,2]
[313365134,1707235323473,260.81174276,0.0002,2]
[313365135,1707235329831,1123.21479385,0.0002,2]
[313365136,1707235332253,283.52752235,0.0002,2]
[313365137,1707235335606,155.0,0.0002,2]
[313365139,1707235336600,155.0,0.0002,2]
[313365140,1707235342332,235.28714445,0.0002,2]
[313365141,1707235343850,2330.61083222,0.0002,2]
[313365142,1707235345536,403.19810569,0.000194,2]
[313365143,1707235345561,260.81174276,0.0002,2]
[313365144,1707235345729,1123.21479385,0.0002,2]
[313365145,1707235352218,283.52752235,0.0002,2]
[313365146,1707235356605,309.19723494,0.0002,2]
[313365147,1707235360334,235.56496837,0.0002,2]
[313365148,1707235361835,2330.61083222,0.0002,2]
[313365150,1707235367480,167.87596721,0.0002,2]
[313365151,1707235367725,1123.21479385,0.0002,2]
[313365152,1707235369541,508.47094165,0.000194,2]
[313365153,1707235378238,283.85892407,0.0002,2]
[313365154,1707235378337,203.37826466,0.0002,2]
[313365156,1707235381842,2330.61083222,0.0002,2]
[313365157,1707235385858,1123.21479385,0.0002,2]
[313365158,1707235396252,283.85892407,0.0002,2]
[313365159,1707235397490,1418.69385824,0.0002,2]
[313365160,1707235399843,1929.61907392,0.0002,2]
[313365161,1707235403736,317.10271994,0.0002,2]
[313365162,1707235414233,283.85892407,0.0002,2]
[313365163,1707235436251,283.85892407,0.0002,2]
[313365164,1707235447402,794.0736188,0.00021753,7]
[313365165,1707235456231,283.85892407,0.0002,2]
[313365166,1707235474229,293.62530121,0.0002,2]
[313365173,1707235668767,291.14882162,0.00021428,2]
[313365174,1707235670176,155.45028316,0.00020608,2]
[313365176,1707235733764,1121.16406462,0.00020608,2]
[313365177,1707235749591,155.0,0.00020608,2]
[313365178,1707235750735,155.0,0.00020608,2]
[313365180,1707235788726,160.09175453,0.00020608,2]
[313365182,1707235813770,1047.6799468,0.00020608,2]
[313365203,1707235832059,-3202.05110341,0.00022686,2]
[313365205,1707235832069,-155.0,0.00022686,2]
[313365206,1707235832078,-155.0,0.00022687,2]
[313365207,1707235832088,-732.24320919,0.00022687,2]
[313365208,1707235832097,-155.0,0.00022687,2]
[313365209,1707235832106,-663.55120331,0.000227,2]
[313365210,1707235832115,-150.0,0.00022799,2]
[313365211,1707235832124,-150.0,0.00022799,2]
[313365212,1707235832132,-1523.0246,0.000228,2]
[313365213,1707235832142,-11371.2254277,0.000228,2]
[313365214,1707235832151,-3292.68725639,0.00022889,2]
[313365215,1707235832168,-1365.27742279,0.00022889,2]
[313365216,1707235832178,-220.90695217,0.00022898,2]
[313365217,1707235832201,-8.23767442,0.00022898,2]
[313365218,1707235832210,-944.53412148,0.00022898,2]
[313365219,1707235832219,-283.83163888,0.00022898,2]
[313365220,1707235832227,-311.23513441,0.00022898,2]
[313365221,1707235832236,-155.26622157,0.00022898,2]
[313365222,1707235832245,-165.44314355,0.00022898,2]
[313365223,1707235832254,-761.59097852,0.00022898,2]
[313365224,1707235832263,-1140.68860112,0.00022898,2]
[313365225,1707235832272,-1045.412009,0.00022898,2]
[313365226,1707235832281,-500.0,0.00022898,2]
[313365227,1707235832290,-155.0,0.00022898,2]
[313365229,1707235832300,-155.0,0.00022898,2]
[313365231,1707235832309,-531.08932322,0.00022898,2]
[313365234,1707235832323,-4271.79740331,0.00022898,2]
[313365236,1707235832337,-1302.81300079,0.00022898,2]
[313365239,1707235832351,-513.88885423,0.00022898,2]
[313365241,1707235832364,-155.0,0.00022898,2]
[313365243,1707235832378,-501.42306486,0.00022898,2]
[313365245,1707235832390,-2359.54128076,0.00022899,2]
[313365248,1707235832407,-2282.97275142,0.00022899,2]
[313365251,1707235832422,-381.43531287,0.00022899,2]
[313365253,1707235832438,-5442.18539446,0.00022899,2]
[313365257,1707235832467,-449.57833095,0.00022899,2]
[313365260,1707235832481,-2624.47096172,0.00022899,2]
[313365262,1707235832493,-112944.7265,0.000229,2]
[313365264,1707235832505,-1129.4826,0.000229,2]
[313365267,1707235832517,-11371.22542768,0.00022904,2]
[313365269,1707235832529,-10794.77,0.00022967,2]
[313365272,1707235832541,-250.0,0.00022971,2]
[313365274,1707235832555,-500.0,0.00022971,2]
[313365276,1707235832567,-87922.25687956,0.00023,2]
[313365278,1707235832577,-88148.99245016,0.00023,2]
[313365281,1707235832593,-30290.47978191,0.00023,2]
[313365284,1707235832609,-129457.95285352,0.00023,2]
[313365285,1707235832622,-11371.22542768,0.00023007,2]
[313365286,1707235832635,-152.57,0.00023107,10]
[313365287,1707235832647,-1005.01,0.00023209,2]
[313365288,1707235832658,-25505.65,0.00023299,2]
[313365289,1707235832673,-13077.43,0.00023317,2]
[313365290,1707235832685,-516.88,0.000234,2]
[313365291,1707235832698,-200.0,0.00023513,2]
[313365292,1707235832711,-393.57,0.00023528,2]
[313365293,1707235832725,-177.47,0.00023538,2]
[313365296,1707235832738,-3848.61936532,0.000239,2]
[313365298,1707235832750,-688.44,0.00023975,2]
[313365300,1707235832760,-201.89660623,0.00024,2]
[313365302,1707235832770,-152.57,0.00024239,10]
[313365304,1707235832781,-350.0,0.00025,3]
[313365306,1707235832793,-2566.85,0.00025,2]
[313365308,1707235832805,-168.0547895,0.00025,2]
[313365311,1707235832817,-1907.0887071,0.00025,2]
[313365313,1707235832832,-1589.9743297,0.00025,2]
[313365315,1707235832843,-937.18611161,0.00025,2]
[313365318,1707235832854,-202.85936825,0.00025,2]
[313365320,1707235832864,-159.45,0.00025009,2]
[313365322,1707235832877,-157.53,0.00025032,2]
[313365324,1707235832888,-250.0,0.00025075,2]
[313365326,1707235832899,-210.0,0.00025079,2]
[313365329,1707235832909,-393.57,0.00025172,2]
[313365331,1707235832920,-157.53,0.00025249,2]
[313365333,1707235832931,-152.57,0.00025371,10]
[313365335,1707235832942,-157.53,0.00025467,2]
[313365337,1707235832952,-157.53,0.00025684,2]
[313365339,1707235832963,-157.53,0.00025902,2]
[313365342,1707235832974,-166.32,0.00025994,2]
[313365344,1707235832985,-150.0,0.00026079,2]
[313365346,1707235832996,-157.53,0.00026119,2]
[313365348,1707235833006,-23900.0,0.00026282,2]
[313365350,1707235833017,-516.88,0.00026326,2]
[313365353,1707235833028,-157.53,0.00026336,2]
[313365355,1707235833039,-393.57,0.00026815,2]
[313365357,1707235833049,-400.0,0.00027,3]
[313365359,1707235833060,-499.99,0.00027,2]
[313365362,1707235833071,-500.0,0.00027,7]
[313365364,1707235833082,-200.17506233,0.00028,2]
[313365366,1707235833092,-393.57,0.00028459,2]
[313365368,1707235833103,-159.45,0.00028594,2]
[313365370,1707235833114,-450.0,0.00029,3]
[313365373,1707235833125,-516.88,0.00029251,2]
[313365375,1707235833136,-366.23585006,0.000295,2]
[313365377,1707235833147,-3848.6193653,0.00029513,2]
[313365379,1707235833158,-585.09173402,0.0003,2]
[313365382,1707235833169,-4892.44622538,0.0003,2]
[313365384,1707235833183,-735.33772729,0.0003,2]
[313365387,1707235833197,-3009.53294812,0.0003,2]
[313365450,1707235836433,176.49,0.00016712,2]
[313365459,1707235838165,-1041.28162232,0.0003,2]
[313365460,1707235838177,-155.0,0.0003,2]
[313365461,1707235838189,-393.57,0.00030103,2]
[313365462,1707235838199,-150.0,0.00030137,2]
[313365463,1707235838208,-124.74837768,0.00030748,2]
[313365464,1707235838219,-46.43162232,0.00030748,2]
[313365465,1707235838228,-564.34,0.00030766,2]
[313365466,1707235838237,-8054.92517768,0.00030987,2]
[313365474,1707235838548,-1952.87182804,0.00030987,2]
[313365475,1707235838572,-728.69447258,0.00030987,2]
[313365476,1707235838584,-741.27723955,0.00030987,2]
[313365477,1707235838595,-420.8888349,0.00030987,2]
[313365478,1707235838607,-1.34244725,0.00030987,2]
[313365479,1707235838616,-312.55607168,0.00031,3]
[313365484,1707235840848,-187.44392832,0.00031,3]
[313365485,1707235840857,-150.0,0.00031233,2]
[313365486,1707235840867,-488.86909163,0.000314,30]
[313365487,1707235840876,-200.0,0.0003163,2]
[313365488,1707235840886,-180.0,0.00031644,2]
[313365489,1707235840895,-605.01352548,0.0003174,2]
[313365555,1707235843227,-390.0,0.0003174,2]
[313365581,1707235847005,-155.0,0.00030999,4]
[313365582,1707235847015,-1004.98647452,0.0003174,2]
[313365583,1707235847025,-393.57,0.00031747,2]
[313365584,1707235847034,-516.88,0.00032176,2]
[313365585,1707235847043,-159.45,0.00032178,2]
[313365586,1707235847052,-2766.0,0.000323,2]
[313365587,1707235847061,-11310.0,0.000323,2]
[313365588,1707235847071,-150.0,0.00032329,2]